[Event "ESTCC U50 2018"]
[Site "Walbrzych"]
[Date "2018.04.22"]
[Round "9"]
[White "Giulian, Rosemary A"]
[Black "Mariotti, Sergio"]
[Result "1/2-1/2"]
[ECO "B22"]
[WhiteElo "1880"]
[BlackElo "2288"]
[Annotator "ChessBase"]
[PlyCount "78"]
[EventDate "2018.??.??"]
[EventCountry "POL"]
[SourceTitle "playchess.com"]
[Source "ChessBase"]
[SourceQuality "1"]
[WhiteTeam "Scotland"]
[BlackTeam "Italy"]
[WhiteTeamCountry "SCO"]
[BlackTeamCountry "ITA"]
[TimeControl "40/5400+30:1800+30"]

1. e4 {[%emt 0:00:00]} c5 {[%emt 0:00:06]} 2. c3 {[%emt 0:00:00]} Nf6 {[%emt 0:00:03]} 3. e5 {[%emt 0:00:00]} Nd5 {[%emt 0:00:01]} 4. d4 {[%emt 0:00:00]} cxd4 {[%emt 0:00:07]} 5. cxd4 {[%emt 0:00:22]} d6 {[%emt 0:00:09]} 6. Nf3 {[%emt 0:00:08]} Nc6 {[%emt 0:00:04]} 7. Bc4 {[%emt 0:01:41]} Nb6 {[%emt 0:00:12]} 8. Bb3 {[%emt 0:00:23]} d5 {[%emt 0:06:04]} 9. O-O {[%emt 0:04:55]} Bg4 {[%emt 0:00:27]} 10. Be3 {[%emt 0:00:40]} e6 {[%emt 0:00:08]} 11. a3 {[%emt 0:06:30]} Be7 {[%emt 0:01:49]} 12. Nbd2 {[%emt 0:01:20]} Bf5 {[%emt 0:02:59]} 13. Bc2 {[%emt 0:01:31]} Bxc2 {[%emt 0:00:10]} 14. Qxc2 {[%emt 0:00:09]} Rc8 {[%emt 0:03:29]} 15. Qd3 {[%emt 0:02:07]} O-O {[%emt 0:00:06]} 16. Rac1 {[%emt 0:04:50]} h6 {[%emt 0:11:22]} 17. Rc2 {[%emt 0:15:47]} Qd7 {[%emt 0:00:41]} 18. Rfc1 {[%emt 0:02:05]} Na5 {[%emt 0:00:44]} 19. Rxc8 {[%emt 0:11:52]} Rxc8 {[%emt 0:00:15]} 20. Rxc8+ {[%emt 0:00:18]} Qxc8 {[%emt 0:00:07]} 21. Qb5 {[%emt 0:06:18]} Nac4 {[%emt 0:00:49]} 22. h3 {[%emt 0:02:27]} a6 {[%emt 0:01:54]} 23. Qb3 {[%emt 0:00:47]} Qc6 {[%emt 0:00:52]} 24. Nxc4 {[%emt 0:04:56]} dxc4 {[%emt 0:00:24]} 25. Qc2 {[%emt 0:01:08]} Nd5 {[%emt 0:00:05]} 26. Nd2 {[%emt 0:02:16]} c3 {[%emt 0:13:36]} 27. Nb1 {[%emt 0:03:06]} cxb2 {[%emt 0:00:18]} 28. Qxb2 {[%emt 0:00:20]} b5 {[%emt 0:00:19]} 29. Bd2 {[%emt 0:02:27]} Qc4 {[%emt 0:00:45]} 30. g3 {[%emt 0:06:41]} f6 {[%emt 0:01:59]} 31. exf6 {[%emt 0:08:07]} Bxf6 32. Be3 Qd3 {[%emt 0:03:42]} 33. Qc1 {[%emt 0:00:48]} Kh7 {[%emt 0:00:37]} 34. Qf1 {[%emt 0:01:52]} Qc2 {[%emt 0:00:28]} 35. Qe1 {[%emt 0:02:40]} a5 {[%emt 0:41:38]} 36. Nd2 {[%emt 0:02:20]} Nc3 {[%emt 0:00:14]} 37. Nf3 {[%emt 0:02:20]} a4 {[%emt 0:07:11]} 38. Bd2 {[%emt 0:00:32]} Ne4 {[%emt 0:00:07]} 39. Bb4 {[%emt 0:01:03]} Kg6 {[%emt 0:00:20]} 1/2-1/2

[Event "ESTCC U50 2018"]
[Site "Walbrzych"]
[Date "2018.04.22"]
[Round "9"]
[White "Jones, Gareth"]
[Black "Nuenchert, Eveline"]
[Result "1/2-1/2"]
[ECO "A05"]
[WhiteElo "1858"]
[BlackElo "2033"]
[Annotator "NA"]
[PlyCount "31"]
[EventDate "2018.??.??"]
[EventCountry "POL"]
[SourceTitle "playchess.com"]
[Source "ChessBase"]
[SourceQuality "1"]
[WhiteTeam "England"]
[BlackTeam "Germany"]
[WhiteTeamCountry "ENG"]
[BlackTeamCountry "GER"]
[TimeControl "40/5400+30:1800+30"]

1. Nf3 {[%emt 0:00:00]} Nf6 {[%emt 0:00:30]} 2. g3 {[%emt 0:00:00]} d6 {[%emt 0:00:20]} 3. d4 {[%emt 0:00:24]} Nbd7 {[%emt 0:00:26]} 4. Bg2 {[%emt 0:00:39]} e5 {[%emt 0:00:31]} 5. dxe5 {[%emt 0:01:06]} dxe5 {[%emt 0:00:11]} 6. O-O {[%emt 0:00:58]} c6 {[%emt 0:01:08]} 7. c4 {[%emt 0:01:12]} Be7 {[%emt 0:01:54]} 8. Nc3 {[%emt 0:01:17]} O-O {[%emt 0:00:35]} 9. Qc2 {[%emt 0:01:08]} Qc7 {[%emt 0:02:17]} 10. b3 {[%emt 0:04:11]} Re8 {[%emt 0:05:00]} 11. Bb2 {[%emt 0:07:07]} a5 {[%emt 0:10:49] LiveBook: 4 Games} 12. Na4 {[%emt 0:06:28]} b6 {[%emt 0:06:02]} 13. Nxe5 $2 {[%emt 0:18:10]} ({White should play} 13. e3 $11) 13... Nxe5 {[%emt 0:01:29]} 14. Bxe5 $19 {[%emt 0:00:23]} Qxe5 {[%emt 0:00:43]} 15. Bxc6 {[%emt 0:00:34]} Bh3 {[%emt 0:03:58]} 16. Rfd1 {[%emt 0:05:26]} 1/2-1/2

[Event "ESTCC U50 2018"]
[Site "Walbrzych"]
[Date "2018.04.22"]
[Round "9"]
[White "Sidler, Samuel"]
[Black "Daleczko, Zbigniew"]
[Result "1-0"]
[ECO "B21"]
[WhiteElo "1833"]
[BlackElo "1835"]
[Annotator "NA"]
[PlyCount "61"]
[EventDate "2018.??.??"]
[EventCountry "POL"]
[SourceTitle "playchess.com"]
[Source "ChessBase"]
[SourceQuality "1"]
[WhiteTeam "Switzerland"]
[BlackTeam "Poland"]
[WhiteTeamCountry "SUI"]
[BlackTeamCountry "POL"]
[TimeControl "40/5400+30:1800+30"]

1. e4 c5 2. d4 {[%emt 0:00:27]} cxd4 {[%emt 0:00:36]} 3. c3 {[%emt 0:00:06]} dxc3 {[%emt 0:00:09]} 4. Nxc3 {[%emt 0:00:17]} Nc6 {[%emt 0:00:14]} 5. Nf3 {[%emt 0:00:13]} d6 {[%emt 0:00:09]} 6. Bc4 {[%emt 0:00:31]} e6 {[%emt 0:00:09]} 7. O-O {[%emt 0:00:44]} Be7 {[%emt 0:00:10]} 8. Qe2 {[%emt 0:00:38]} Nf6 {[%emt 0:04:41]} 9. Rd1 {[%emt 0:02:37]} O-O {[%emt 0:02:05] B21: Sicilian: 2 f4 and Morra Gambit} (9... e5 10. Be3 O-O 11. Rac1 Be6 12. b4 Bg4 13. b5 Na5 14. Bd5 Qd7 15. h3 Bh5 16. a4 Rfc8 17. Ba2 b6 18. Nd5 Nxd5 19. Bxd5 Rxc1 20. Bxc1 Rd8 21. Ba3 {½-½ (21) Grigoryev,V (2503)-Voll,A (2556) ICCF email 2011}) 10. Bf4 {[%emt 0:05:26]} Nh5 {[%emt 0:01:24]} 11. Bxd6 {[%emt 0:13:22]} Bxd6 {[%emt 0:00:13]} 12. e5 {[%emt 0:00:10]} Nf4 {[%emt 0:06:35]} 13. Qe4 {[%emt 0:07:31] [#]} Ng6 {[%emt 0:04:45]} (13... Nxe5 $1 $11 14. Nxe5 f6) 14. Rxd6 {[%emt 0:06:50]} Qa5 $146 {[%emt 0:05:45]} ({Predecessor:} 14... Qc7 15. Rad1 Na5 16. Bb3 Bd7 17. h4 Bc6 18. Rxc6 Qxc6 19. Qg4 Qc7 20. Qe4 Rfd8 21. h5 Rxd1+ {0-1 (21) Benez,L (1883)-Carneiro,C (1810) Maringa 2011}) 15. Re1 {[%emt 0:03:49]} Qc5 {[%emt 0:05:02]} 16. Rdd1 {[%emt 0:12:51]} Ncxe5 {[%emt 0:03:38]} 17. Nxe5 {[%emt 0:06:38]} Nxe5 {[%emt 0:00:05]} 18. Bb3 {[%emt 0:00:40]} Nc6 {[%emt 0:01:48]} 19. Re3 {[%emt 0:13:34]} Qb4 {[%emt 0:11:45]} 20. Qf3 $11 {[%emt 0:02:32]} Nd4 {[%emt 0:00:29]} 21. Qf4 {[%emt 0:05:58]} Nc6 {[%emt 0:00:59]} 22. Re4 {[%emt 0:01:17]} Qc5 {[%emt 0:01:52]} 23. Qg3 {[%emt 0:02:49]} Ne7 {[%emt 0:00:32]} 24. Re5 {[%emt 0:01:20]} Qc7 {[%emt 0:03:12]} 25. Nb5 {[%emt 0:00:12]} Qb8 {[%emt 0:00:15]} 26. Nd6 {[%emt 0:01:41]} Nf5 {[%emt 0:07:55]} 27. Nxf5 {[%emt 0:02:58]} exf5 {[%emt 0:00:05]} 28. Qe3 {[%emt 0:00:15]} Qc7 {[%emt 0:02:16]} 29. Re7 {[%emt 0:01:02]} Qa5 {[%emt 0:04:04]} 30. Rxf7 {[%emt 0:01:02]} h6 {[%emt 0:02:10]} 31. Rxf5+ {[%emt 0:00:46]} 1-0

[Event "ESTCC U50 2018"]
[Site "Walbrzych"]
[Date "2018.04.22"]
[Round "9"]
[White "Szydelko, Kazimierz"]
[Black "Aegerter, Klaus"]
[Result "1/2-1/2"]
[ECO "E91"]
[WhiteElo "1689"]
[BlackElo "1731"]
[Annotator "NA"]
[PlyCount "114"]
[EventDate "2018.??.??"]
[EventCountry "POL"]
[SourceTitle "playchess.com"]
[Source "ChessBase"]
[SourceQuality "1"]
[WhiteTeam "Poland"]
[BlackTeam "Switzerland"]
[WhiteTeamCountry "POL"]
[BlackTeamCountry "SUI"]
[TimeControl "40/5400+30:1800+30"]

1. d4 {[%emt 0:00:04]} Nf6 {[%emt 0:00:13]} 2. c4 {[%emt 0:00:21]} g6 {[%emt 0:00:15]} 3. Nf3 {[%emt 0:00:06]} Bg7 {[%emt 0:00:17]} 4. Nc3 {[%emt 0:00:07]} O-O {[%emt 0:00:32]} 5. e4 {[%emt 0:00:07]} d6 {[%emt 0:00:15]} 6. Be2 {[%emt 0:01:14]} Nbd7 {[%emt 0:00:29]} 7. h3 {[%emt 0:00:36]} e5 {[%emt 0:00:38]} 8. Be3 {[%emt 0:01:04]} a5 {[%emt 0:02:54]} 9. O-O {[%emt 0:01:39]} exd4 {[%emt 0:03:25]} 10. Nxd4 {[%emt 0:04:06]} Nc5 {[%emt 0:01:32]} 11. Qc2 {[%emt 0:00:51]} Re8 {[%emt 0:01:55]} 12. Bf3 {[%emt 0:01:33]} Qe7 {[%emt 0:04:48]} 13. Nd5 {[%emt 0:02:26]} Nxd5 {[%emt 0:01:48]} 14. exd5 {[%emt 0:00:15]} Bd7 {[%emt 0:04:51]} 15. Rfe1 {[%emt 0:04:50]} Qh4 {[%emt 0:07:05]} 16. Qd2 {[%emt 0:04:53]} a4 {[%emt 0:12:04]} 17. Rac1 {[%emt 0:02:44]} Ne4 {[%emt 0:08:21]} 18. Bxe4 {[%emt 0:02:44]} Rxe4 {[%emt 0:03:12]} 19. Nf3 {[%emt 0:00:30]} Qf6 {[%emt 0:02:20]} 20. Bg5 {[%emt 0:20:13]} Rxe1+ {[%emt 0:00:39]} 21. Rxe1 {[%emt 0:00:19]} Qxb2 {[%emt 0:04:06]} 22. Qxb2 {[%emt 0:00:55]} Bxb2 {[%emt 0:00:08]} 23. Re7 {[%emt 0:00:14]} Bf5 {[%emt 0:00:36]} 24. Rxc7 {[%emt 0:00:34]} Bb1 {[%emt 0:01:47]} 25. c5 {[%emt 0:09:33]} Ba3 {[%emt 0:03:16]} 26. Rxb7 {[%emt 0:00:41]} Bxa2 {[%emt 0:01:56]} 27. cxd6 {[%emt 0:02:24]} Bxd5 {[%emt 0:03:21]} 28. Rb6 {[%emt 0:01:12]} Bxf3 {[%emt 0:09:14]} 29. gxf3 {[%emt 0:00:10]} Kf8 {[%emt 0:05:59]} 30. Bf4 {[%emt 0:14:49]} Ke8 {[%emt 0:07:27]} 31. Kg2 {[%emt 0:04:30]} Bc5 {[%emt 0:03:39]} 32. Rc6 {[%emt 0:06:22]} a3 {[%emt 0:00:47]} 33. Rxc5 {[%emt 0:04:46]} a2 {[%emt 0:00:10]} 34. Be5 {[%emt 0:00:26]} a1=Q {[%emt 0:00:20]} 35. Bxa1 {[%emt 0:00:08]} Rxa1 {[%emt 0:00:07]} 36. Rc8+ {[%emt 0:01:27]} Kd7 {[%emt 0:00:32]} 37. Rf8 {[%emt 0:00:11]} Ra5 {[%emt 0:05:22]} 38. Rxf7+ {[%emt 0:01:16]} Kxd6 {[%emt 0:00:04]} 39. h4 {[%emt 0:00:13]} Rh5 {[%emt 0:00:40]} 40. Kg3 {[%emt 0:00:00]} Ke6 {[%emt 0:00:41]} 41. Ra7 {[%emt 0:06:58]} Kf6 {[%emt 0:00:39]} 42. Kg4 {[%emt 0:00:37]} Ke6 {[%emt 0:01:31]} 43. f4 {[%emt 0:01:18]} Kf6 {[%emt 0:03:13]} 44. f3 {[%emt 0:03:05]} h6 {[%emt 0:05:01]} 45. Rh7 {[%emt 0:00:56]} Rb5 {[%emt 0:02:14]} 46. Rc7 {[%emt 0:03:11]} h5+ {[%emt 0:01:57]} 47. Kg3 {[%emt 0:00:06]} Ra5 {[%emt 0:00:28]} 48. Rc6+ {[%emt 0:00:16]} Kf7 {[%emt 0:00:06]} 49. Rc3 {[%emt 0:00:20]} Kf6 {[%emt 0:01:27]} 50. Re3 {[%emt 0:00:17]} Rb5 {[%emt 0:00:19]} 51. Re8 {[%emt 0:00:08]} Ra5 {[%emt 0:00:57]} 52. Kf2 {[%emt 0:00:40]} Rb5 {[%emt 0:02:39]} 53. Rd8 {[%emt 0:00:18]} Kf5 {[%emt 0:01:11]} 54. Rf8+ {[%emt 0:00:06]} Ke6 {[%emt 0:00:14]} 55. Re8+ {[%emt 0:01:13]} Kf5 {[%emt 0:00:47]} 56. Re4 {[%emt 0:01:46]} Ra5 {[%emt 0:01:00]} 57. Rd4 {[%emt 0:01:05]} Rb5 1/2-1/2

[Event "ESTCC U50 2018"]
[Site "Walbrzych"]
[Date "2018.04.22"]
[Round "9"]
[White "Telenius, Kimmo"]
[Black "Fatalibekova, Elena"]
[Result "0-1"]
[ECO "B32"]
[WhiteElo "1603"]
[BlackElo "2195"]
[Annotator "NA"]
[PlyCount "40"]
[EventDate "2018.??.??"]
[EventCountry "POL"]
[SourceTitle "playchess.com"]
[Source "ChessBase"]
[SourceQuality "1"]
[WhiteTeam "Finland"]
[BlackTeam "Russia"]
[WhiteTeamCountry "FIN"]
[BlackTeamCountry "RUS"]
[TimeControl "40/5400+30:1800+30"]

1. e4 c5 2. Nf3 Nc6 3. d4 cxd4 4. Nxd4 g6 {LiveBook: 9489 Games} 5. g3 Bg7 6. c3 d6 7. Bg2 Bd7 8. O-O Qc8 9. Be3 Nf6 10. f3 h5 11. Na3 Ne5 12. Rc1 O-O ({Black should try} 12... h4 $11) 13. Qd2 Kh7 14. f4 Neg4 15. f5 Nxe3 $17 16. fxg6+ fxg6 17. Qxe3 Bh6 18. Qd3 Bxc1 19. Rxc1 Ng4 20. Nf3 Qc5+ {Bf1} 0-1